Workbook

Sheet таблица 3
D1: Таблица 1 к Приложению 3
A3: Информация об изменениях объемов финансирования и целевых показателей муниципальной программы города Усолье-Сибирское "Развитие образования" на 2019-2027 годы за 2025 год
A4: Наименование программы, подпрограммы, основного мероприятия, мероприятия, проекта | B4: Источники финансирования/Наименование целевого показателя | C4: Предусмотренный объем финансирования (тыс. руб.)/Значение целевого показателя
C5: Редакция программы от 10.02.2025 г. № 215-па (на начало отчетного периода) | D5: Редакция программы от 30.12.2025 г. № 2529-па (на конец отчетного периода)
A6: 1 | B6: 2 | C6: 3 | D6: 4
A7: Муниципальная программа города Усолье-Сибирское «Развитие образования» на 2019-2027 годы | B7: Всего: | C7: =C8+C9+C10+C11 -> 2,348,208.41 | D7: =D8+D9+D10+D11 -> 2,446,634.13
B8: Целевые средства | C8: 0.00 | D8: =2160500/1000 -> 2,160.50
B9: Местный бюджет | C9: =440476446.95/1000 -> 440,476.45 | D9: =449616089.24/1000 -> 449,616.09
B10: Областной бюджет | C10: =1862669764/1000 -> 1,862,669.76 | D10: =1843691320.44/1000 -> 1,843,691.32
B11: Федеральный бюджет | C11: =45062200/1000 -> 45,062.20 | D11: =151166223.52/1000 -> 151,166.22
B12: Целевой показатель 1. Доля детей от 1 года до 8 лет, охваченных дошкольным образованием от общего числа детей, в возрасте от 1 года до 8 лет (%) | C12: 100 | D12: 56.3
B13: Целевой показатель 2. Доля успевающих учеников общеобразовательных учреждений в общем контингенте обучающихся общеобразовательных учреждений (%) | C13: 99.7 | D13: 99.7
B14: Целевой показатель 3. Доля детей, получающих услуги дополнительного образования, в общей численности детей в возрасте 5-18 лет (%) | C14: 80.1 | D14: 71.0
B15: Целевой показатель 4. Доля детей, охваченных отдыхом и оздоровлением в каникулярный период, в общей численности детей в возрасте 7-18 лет (%) | C15: 18.4 | D15: 17.9
B16: Целевой показатель 5. Доля образовательных организаций, вовлеченых в реализацию национального проекта "Образование" (%) | C16: 100 | D16: 100
A17: Подпрограмма 1 «Развитие дошкольного образования города Усолье-Сибирское» на 2019-2027 годы | B17: Всего: | C17: =C18+C19+C20 -> 979,043.86 | D17: =D18+D19+D20 -> 984,778.84
B18: Целевые средства | C18: 0.00 | D18: =1072500/1000 -> 1,072.50
B19: Местный бюджет | C19: =75734760.53/1000 -> 75,734.76 | D19: =76034139.68/1000 -> 76,034.14 | H19: =C25+C29+C33+C37+C41+C45+C49+C53+C57+C61+C65+C69+C73+C81+G41 -> 74,486.78 | I19: =D25+D29+D33+D37+D41+D45+D49+D53+D57+D61+D65+D69+D73+D81 -> 75,834.14
B20: Областной бюджет | C20: =903309100/1000 -> 903,309.10 | D20: =907672200/1000 -> 907,672.20
B21: Целевой показатель 1. Доля детей от 1 года до 8 лет, охваченных дошкольным образованием от общего числа детей, в возрасте от 1 года до 8 лет (%) | C21: 100 | D21: 56.3
B22: Целевой показатель 2. Удельный вес числа дошкольных образовательных учреждений, в которых проведен капитальный ремонт в общем числе дошкольных образовательных учреждений, здания которых требуют капитального ремонта (%) | C22: 55 | D22: 0
B23: Целевой показатель 3. Количество дошкольных организаций, реализующих инициативные проекты на территории города Усолье-Сибирское (ед.) | C23: - | D23: 5
A24: Основное мероприятие 1.1. Обеспечение деятельности дошкольных образовательных учреждений | B24: Всего: | C24: =C25+C26 -> 976,462.26 | D24: =D25+D26 -> 972,577.65
B25: Местный бюджет | C25: =73153163.81/1000 -> 73,153.16 | D25: =74305445.94/1000 -> 74,305.45
B26: Областной бюджет | C26: =903309100/1000 -> 903,309.10 | D26: =898272200/1000 -> 898,272.20
B27: Целевой показтель 1. Доля детей от 1 года до 8 лет, охваченных дошкольным образованием от общего числа детей, в возрасте от 1 года до 8 лет (%) | C27: 100 | D27: 56.3
A28: Основное мероприятие 1.2. Повышение уровня профессионального роста работников дошкольных образовательных учреждений | B28: Всего: | C28: =C29+C30 -> 0.00 | D28: =D29+D30 -> 0.00
B29: Местный бюджет | C29: 0.00 | D29: 0.00
B30: Областной бюджет | C30: 0.00 | D30: 0.00
B31: Целевой показатель 1. Доля детей от 1 года до 8 лет, охваченных дошкольным образованием от общего числа детей, в возрасте от 1 года до 8 лет (%) | C31: 100 | D31: 56.3
A32: Основное мероприятие 1.3. Мероприятия , направленные на выявление одаренных детей | B32: Всего: | C32: =C33+C34 -> 0.00 | D32: =D33+D34 -> 0.00
B33: Местный бюджет | C33: 0.00 | D33: 0.00
B34: Областной бюджет | C34: 0.00 | D34: 0.00
B35: Целевой показатель 1. Доля детей от 1 года до 8 лет, охваченных дошкольным образованием от общего числа детей, в возрасте от 1 года до 8 лет (%) | C35: 100 | D35: 56.3
A36: Основное мероприятие 1.4. Проведение ремонтных работ и мероприятий по благоустройству, оснащению в дошкольных образовательных учреждениях | B36: Всего: | C36: =C37+C38 -> 1,333.62 | D36: =D37+D38 -> 1,528.69
B37: Местный бюджет | C37: =1333618.74/1000 -> 1,333.62 | D37: =1528693.74/1000 -> 1,528.69
B38: Областной бюджет | C38: 0.00 | D38: 0.00
B39: Целевой показатель 2. Удельный вес числа дошкольных образовательных учреждений, в которых проведен капитальный ремонт в общем числе дошкольных образовательных учреждений, здания которых требуют капитального ремонта (%) | C39: 55 | D39: 0
A40: Основное мероприятие 1.5. Выборочный капитальный ремонт здания МБДОУ «Детский сад № 6» по адресу: Иркутская область, г. Усолье-Сибирское, проспект Космонавтов, 6 (устройство систем вентиляции помещений пищеблока и прачечной) | B40: Всего: | C40: =C41+C42 -> 0.00 | D40: =D41+D42 -> 0.00
B41: Местный бюджет | C41: 0.00 | D41: 0.00
B42: Областной бюджет | C42: 0.00 | D42: 0.00
B43: Целевой показатель 2. Удельный вес числа дошкольных образовательных учреждений, в которых проведен капитальный ремонт в общем числе дошкольных образовательных учреждений, здания которых требуют капитального ремонта (%) | C43: 55 | D43: 0
A44: Основное мероприятие 1.6. Реконструкция здания детского сада № 28 на 215 мест, расположенного по адресу Иркутская область, г. Усолье-Сибирское, проспект Космонавтов, 12А | B44: Всего: | C44: =C45+C46 -> 0.00 | D44: =D45+D46 -> 0.00
B45: Местный бюджет | C45: 0.00 | D45: 0.00
B46: Областной бюджет | C46: 0.00 | D46: 0.00
B47: Целевой показатель 2. Удельный вес числа дошкольных образовательных учреждений, в которых проведен капитальный ремонт в общем числе дошкольных образовательных учреждений, здания которых требуют капитального ремонта (%) | C47: 55 | D47: 0.0
A48: Основное мероприятие 1.7. Выборочный капитальный ремонт здания МБДОУ «Детский сад № 8» по адресу: Иркутская область, г. Усолье-Сибирское, ул. Крупской, 29 (ремонт кровли, фасада, козырьков) | B48: Всего: | C48: =C49+C50 -> 0.00 | D48: =D49+D50 -> 0.00
B49: Местный бюджет | C49: 0.00 | D49: 0.00
B50: Областной бюджет | C50: 0.00 | D50: 0.00
B51: Целевой показатель 2. Удельный вес числа дошкольных образовательных учреждений, в которых проведен капитальный ремонт в общем числе дошкольных образовательных учреждений, здания которых требуют капитального ремонта (%) | C51: 55 | D51: 0.0
A52: Основное мероприятие 1.8. Выборочный капитальный ремонт здания МБДОУ «Д/с № 26» по адресу: Иркутская область, г. Усолье-Сибирское, проспект Комсомольский, 22 (замена заполнений оконных проемов) | B52: Всего: | C52: =C53+C54 -> 0.00 | D52: =D53+D54 -> 0.00
B53: Местный бюджет | C53: 0.00 | D53: 0.00
B54: Областной бюджет | C54: 0.00 | D54: 0.00
B55: Целевой показатель 2. Удельный вес числа дошкольных образовательных учреждений, в которых проведен капитальный ремонт в общем числе дошкольных образовательных учреждений, здания которых требуют капитального ремонта (%) | C55: 55 | D55: 0.0
A56: Основное мероприятие 1.9. Выборочный капитальный ремонт здания муниципального бюджетного дошкольного образовательного учреждения «Детский сад общеразвивающего вида № 42» (ремонт фасада и замена окон), расположенного по адресу: Иркутская область, г. Усолье-Сибирское, ул. Толбухина, 13 | B56: Всего: | C56: =C57+C58 -> 0.00 | D56: =D57+D58 -> 0.00
B57: Местный бюджет | C57: 0.00 | D57: 0.00
B58: Областной бюджет | C58: 0.00 | D58: 0.00
B59: Целевой показатель 2. Удельный вес числа дошкольных образовательных учреждений, в которых проведен капитальный ремонт в общем числе дошкольных образовательных учреждений, здания которых требуют капитального ремонта (%) | C59: 55 | D59: 0.0
A60: Основное мероприятие 1.10. Выборочный капитальный ремонт теплового узла здания муниципального бюджетного дошкольного образовательного учреждения «Детский сад № 43», расположенного по адресу: Иркутская область, г. Усолье-Сибирское, проспект Красных Партизан, 28 | B60: Всего: | C60: =C61+C62 -> 0.00 | D60: =D61+D62 -> 0.00
B61: Местный бюджет | C61: 0.00 | D61: 0.00
B62: Областной бюджет | C62: 0.00 | D62: 0.00
B63: Целевой показатель 2. Удельный вес числа дошкольных образовательных учреждений, в которых проведен капитальный ремонт в общем числе дошкольных образовательных учреждений, здания которых требуют капитального ремонта (%) | C63: 55 | D63: 0
A64: Основное мероприятие 1.11. Выборочный капитальный ремонт здания МБДОУ «Детский сад 5» по адресу: Иркутская область, г. Усолье-Сибирское, проспект Космонавтов, д. 46 А | B64: Всего: | C64: =C65+C66 -> 0.00 | D64: =D65+D66 -> 0.00
B65: Местный бюджет | C65: 0.00 | D65: 0.00
B66: Областной бюджет | C66: 0.00 | D66: 0.00
B67: Целевой показатель 2. Удельный вес числа дошкольных образовательных учреждений, в которых проведен капитальный ремонт в общем числе дошкольных образовательных учреждений, здания которых требуют капитального ремонта (%) | C67: 55 | D67: 0
A68: Основное мероприятие 1.12. Выборочный капитальный ремонт здания МБДОУ «Детский сад 33» по адресу: Иркутская область, г. Усолье-Сибирское, проезд Серегина, 26 (замена заполнений оконных проемов) | B68: Всего: | C68: =C69+C70 -> 0.00 | D68: =D69+D70 -> 0.00
B69: Местный бюджет | C69: 0.00 | D69: 0.00
B70: Областной бюджет | C70: 0.00 | D70: 0.00
B71: Целевой показатель 2. Удельный вес числа дошкольных образовательных учреждений, в которых проведен капитальный ремонт в общем числе дошкольных образовательных учреждений, здания которых требуют капитального ремонта (%) | C71: 55 | D71: 0
A72: Основное мероприятие 1.13. Выборочный капитальный ремонт нежилого здания склада, расположенного по адресу: Иркутская область, г. Усолье-Сибирское, проспект Космонавтов, 12 А (ремонт кровли, перекрытия, окраска фасада, установка ворот) | B72: Всего: | C72: =C73+C74 -> 0.00 | D72: =D73+D74 -> 0.00
B73: Местный бюджет | C73: 0.00 | D73: 0.00
B74: Областной бюджет | C74: 0.00 | D74: 0.00
B75: Целевой показатель 2. Удельный вес числа дошкольных образовательных учреждений, в которых проведен капитальный ремонт в общем числе дошкольных образовательных учреждений, здания которых требуют капитального ремонта (%) | C75: 55 | D75: 0
A76: Основное мероприятие 1.14. «Приобретение мебели в муниципальные бюджетные дошкольные образовательные учреждения» | B76: Всего: | C76: 0.0 | D76: 0.0
B77: Местный бюджет | C77: 0.0 | D77: 0.0
B78: Областной бюджет | C78: 0.0 | D78: 0.0
B79: Целевой показатель 2. Удельный вес числа дошкольных образовательных учреждений, в которых проведен капитальный ремонт в общем числе дошкольных образовательных учреждений, здания которых требуют капитального ремонта (%) | C79: 55 | D79: 0
A80: Основное мероприятие 1.15. Оснащение здания детского сада № 28 по адресу: г. Усолье-Сибирское, пр. Космонавтов, дом 12 "А" | B80: Всего: | C80: =C81+C82 -> 0.00 | D80: =D81+D82 -> 0.00
B81: Местный бюджет | C81: 0.00 | D81: 0.00
B82: Областной бюджет | C82: 0.00 | D82: 0.00
B83: Целевой показатель 2. Удельный вес числа дошкольных образовательных учреждений, в которых проведен капитальный ремонт в общем числе дошкольных образовательных учреждений, здания которых требуют капитального ремонта (%) | C83: 55 | D83: 0
A84: Основное мероприятие 1.16. Приобретение здания МБДОУ "Детский сад на 140 мест по адресу г.Усолье-Сибирское ул. Суворова | B84: Всего: | C84: =C85+C86 -> 0.00 | D84: =D85+D86 -> 0.00
B85: Местный бюджет | C85: 0.00 | D85: 0.00
B86: Областной бюджет | C86: 0.00 | D86: 0.00
B87: Целевой показатель 1. Доля детей от 1 года до 8 лет, охваченных дошкольным образованием от общего числа детей, в возрасте от 1 года до 8 лет (%) | C87: 100 | D87: 56.3
A91: Основное мероприятие 1.17. «Выборочный капитальный ремонт МБДОУ «Детский сад №22», по адресу: Иркутская область, город Усолье-Сибирское, проспект Космонавтов, 21А.» | B91: Всего: | C91: =C92+C93 -> 0.00 | D91: =D92+D93 -> 0.00
B92: Местный бюджет | C92: 0.00 | D92: 0.00
B93: Областной бюджет | C93: 0.00 | D93: 0.00
B94: Целевой показатель 2. Удельный вес числа дошкольных образовательных учреждений, в которых проведен капитальный ремонт в общем числе дошкольных образовательных учреждений, здания которых требуют капитального ремонта (%) | C94: 55 | D94: 0
A98: Основное мероприятие 1.18. Замена ограждения по периметру территории, устройство подпорной стенки МБДОУ «Детский сад №22», расположенного по адресу Иркутская обл. г.Усолье-Сибирское, пр.Космонавтов, 21А | B98: Всего: | C98: =C99+C100 -> 0.00 | D98: =D99+D100 -> 0.00
B99: Местный бюджет | C99: 0.00 | D99: 0.00
B100: Областной бюджет | C100: 0.00 | D100: 0.00
B101: Целевой показатель 2. Удельный вес числа дошкольных образовательных учреждений, в которых проведен капитальный ремонт в общем числе дошкольных образовательных учреждений, здания которых требуют капитального ремонта (%)выборочного капитального ремонта. | C101: 55 | D101: 0
A105: Основное мероприятие 1.19. Капитальный ремонт МБОУ "Детский сад №6" | B105: Всего: | C105: =C106+C107 -> 0.00 | D105: =D106+D107 -> 200.00
B106: Местный бюджет | C106: 0.00 | D106: =200000/1000 -> 200.00
B107: Областной бюджет | C107: 0.00 | D107: 0.00
B108: Целевой показатель 2. Удельный вес числа дошкольных образовательных учреждений, в которых проведен капитальный ремонт в общем числе дошкольных образовательных учреждений, здания которых требуют капитального ремонта (%)выборочного капитального ремонта. | C108: 55 | D108: 0
A112: Основное мероприятие 1.20. Замена оконных блоков МБДОУ «Детский сад №44», расположенного по адресу Иркутская обл. г.Усолье-Сибирское, пр. Красных Партизан, 46 | B112: Всего: | C112: =C113+C114 -> 0.00 | D112: =D113+D114 -> 0.00
B113: Местный бюджет | C113: 0.00 | D113: 0.00
B114: Областной бюджет | C114: 0.00 | D114: 0.00
B115: Целевой показатель 2. Удельный вес числа дошкольных образовательных учреждений, в которых проведен капитальный ремонт в общем числе дошкольных образовательных учреждений, здания которых требуют капитального ремонта (%) | C115: 55 | D115: 0
A119: Основное мероприятие 1.21. Выборочный капитальный ремонт электрических сетей МБДОУ «Детский сад №37», расположенного по адресу Иркутская обл. г.Усолье-Сибирское, ул. Интернациональная, 44 | B119: Всего: | C119: =C120+C121 -> 0.00 | D119: =D120+D121 -> 0.00
B120: Местный бюджет | C120: 0.00 | D120: 0.00
B121: Областной бюджет | C121: 0.00 | D121: 0.00
B122: Целевой показатель 2. Удельный вес числа дошкольных образовательных учреждений, в которых проведен капитальный ремонт в общем числе дошкольных образовательных учреждений, здания которых требуют капитального ремонта (%) | C122: 55 | D122: 0
A126: Основное мероприятие 1.22. Ремонт систем водоотведения, горячего и холодного водоснабжения МБДОУ «Детский сад №5», расположенного по адресу Иркутская обл. г.Усолье-Сибирское, пр.Космонавтов, 46А | B126: Всего: | C126: =C127+C128 -> 0.00 | D126: =D127+D128 -> 0.00
B127: Местный бюджет | C127: 0.00 | D127: 0.00
B128: Областной бюджет | C128: 0.00 | D128: 0.00
B129: Целевой показатель 2. Удельный вес числа дошкольных образовательных учреждений, в которых проведен капитальный ремонт в общем числе дошкольных образовательных учреждений, здания которых требуют капитального ремонта (%) | C129: 55 | D129: 0
A133: Основное мероприятие 1.23. Ремонт ограждения, фасада, полов МБДОУ «Детский сад № 18», расположенного по адресу Иркутская обл. г.Усолье-Сибирское, ул.Ленина, 80 | B133: Всего: | C133: =C134+C135 -> 0.00 | D133: =D134+D135 -> 0.00
B134: Местный бюджет | C134: 0.00 | D134: 0.00
B135: Областной бюджет | C135: 0.00 | D135: 0.00
B136: Целевой показатель 2. Удельный вес числа дошкольных образовательных учреждений, в которых проведен капитальный ремонт в общем числе дошкольных образовательных учреждений, здания которых требуют капитального ремонта (%) | C136: 55 | D136: 0
A140: Основное мероприятие 1.24. Замена оконных блоков МБДОУ «Детский сад № 35», расположенного по адресу Иркутская обл. г.Усолье-Сибирское, ул. Стопани 59 | B140: Всего: | C140: =C141+C142 -> 0.00 | D140: =D141+D142 -> 0.00
B141: Местный бюджет | C141: 0.00 | D141: 0.00
B142: Областной бюджет | C142: 0.00 | D142: 0.00
B143: Целевой показатель 2. Удельный вес числа дошкольных образовательных учреждений, в которых проведен капитальный ремонт в общем числе дошкольных образовательных учреждений, здания которых требуют капитального ремонта (%) | C143: 55 | D143: 0
A147: Основное мероприятие 1.25. Выборочный капитальный ремонт фасада, устройство подпорной стенки, замена оконных блоков МБДОУ «Детский сад №22», расположенного по адресу Иркутская обл. г. Усолье-Сибирское пр. Космонавтов, 21А. | B147: Всего: | C147: =C148+C149 -> 0.00 | D147: =D148+D149 -> 0.00
B148: Местный бюджет | C148: 0.00 | D148: 0.00
B149: Областной бюджет | C149: 0.00 | D149: 0.00
B150: Целевой показатель 2. Удельный вес числа дошкольных образовательных учреждений, в которых проведен капитальный ремонт в общем числе дошкольных образовательных учреждений, здания которых требуют капитального ремонта (%) | C150: 55 | D150: 0
A151: Основное мероприятие 1.26. Ремонт системы отопления МБДОУ «Детский сад № 37», расположенного по адресу Иркутская обл. г. Усолье-Сибирское, ул. Интернациональная,44. | B151: Всего: | C151: =C152+C153 -> 0.00 | D151: =D152+D153 -> 0.00
B152: Местный бюджет | C152: 0.00 | D152: 0.00
B153: Областной бюджет | C153: 0.00 | D153: 0.00
B154: Целевой показатель 2. Удельный вес числа дошкольных образовательных учреждений, в которых проведен капитальный ремонт в общем числе дошкольных образовательных учреждений, здания которых требуют капитального ремонта (%) | C154: 55 | D154: 0
A155: Основное мероприятие 1.27. Выборочный капитальный ремонт отмостков, ремонт 2х тамбуров центральных выходов и выходов из группы МБДОУ «Детский сад № 5», расположенного по адресу Иркутская обл. г. Усолье-Сибирское», пр. Космонавтов,46А. | B155: Всего: | C155: =C156+C157 -> 0.00 | D155: =D156+D157 -> 0.00
B156: Местный бюджет | C156: 0.00 | D156: 0.00
B157: Областной бюджет | C157: 0.00 | D157: 0.00
B158: Целевой показатель 2. Удельный вес числа дошкольных образовательных учреждений, в которых проведен капитальный ремонт в общем числе дошкольных образовательных учреждений, здания которых требуют капитального ремонта (%) | C158: 55 | D158: 0
A159: Основное мероприятие 1.28. Выборочный капитальный ремонт системы электроснабжения МБДОУ «Детский сад № 35», расположенного по адресу Иркутская обл. г. Усолье-Сибирское, ул. Стопани,59. | B159: Всего: | C159: =C160+C161 -> 0.00 | D159: =D160+D161 -> 0.00
B160: Местный бюджет | C160: 0.00 | D160: 0.00
B161: Областной бюджет | C161: 0.00 | D161: 0.00
B162: Целевой показатель 2. Удельный вес числа дошкольных образовательных учреждений, в которых проведен капитальный ремонт в общем числе дошкольных образовательных учреждений, здания которых требуют капитального ремонта (%) | C162: 55 | D162: 0
A163: Основное мероприятие 1.29. Замена оконных блоков МДОУ «Детский сад №25», расположенного по адресу Иркутская обл. г. Усолье-Сибирское, пр. Комсомольский,34. | B163: Всего: | C163: =C164+C165 -> 0.00 | D163: =D164+D165 -> 0.00
B164: Местный бюджет | C164: 0.00 | D164: 0.00
B165: Областной бюджет | C165: 0.00 | D165: 0.00
B166: Целевой показатель 2. Удельный вес числа дошкольных образовательных учреждений, в которых проведен капитальный ремонт в общем числе дошкольных образовательных учреждений, здания которых требуют капитального ремонта (%) | C166: 55 | D166: 0
A167: Основное мероприятие 1.30. Капитальный ремонт систем ХВС, ГВС и водоотведения МБДОУ «Детский сад № 7» расположенного по адресу Иркутская обл. г. Усолье-Сибирское, ул. Толбухина, 36. | B167: Всего: | C167: =C168+C169 -> 0.00 | D167: =D168+D169 -> 0.00
B168: Местный бюджет | C168: 0.00 | D168: 0.00
B169: Областной бюджет | C169: 0.00 | D169: 0.00
B170: Целевой показатель 2. Удельный вес числа дошкольных образовательных учреждений, в которых проведен капитальный ремонт в общем числе дошкольных образовательных учреждений, здания которых требуют капитального ремонта (%) | C170: 55 | D170: 0
A171: Основное мероприятие 1.31. Ремонт системы электроснабжения и электроосвещения МБДОУ «Детский сад № 39», расположенного по адресу Иркутская обл. г. Усолье-Сибирское, Интернациональная,18. | B171: Всего: | C171: =C172+C173 -> 0.00 | D171: =D172+D173 -> 0.00
B172: Местный бюджет | C172: 0.00 | D172: 0.00
B173: Областной бюджет | C173: 0.00 | D173: 0.00
B174: Целевой показатель 2. Удельный вес числа дошкольных образовательных учреждений, в которых проведен капитальный ремонт в общем числе дошкольных образовательных учреждений, здания которых требуют капитального ремонта (%) | C174: 55 | D174: 0
A175: Основное мероприятие 1.32. Выборочный капитальный ремонт систем электроснабжения, электроосвещения» МДОУ «Детский сад № 32», расположенного по адресу Иркутская обл. г. Усолье-Сибирское, ул. Толбухина,48. | B175: Всего: | C175: =C176+C177 -> 0.00 | D175: =D176+D177 -> 0.00
B176: Местный бюджет | C176: 0.00 | D176: 0.00
B177: Областной бюджет | C177: 0.00 | D177: 0.00
B178: Целевой показатель 2. Удельный вес числа дошкольных образовательных учреждений, в которых проведен капитальный ремонт в общем числе дошкольных образовательных учреждений, здания которых требуют капитального ремонта (%) | C178: 55 | D178: 0
A179: Основное мероприятие 1.33. Ремонт системы отопления, замена индивидуального теплового пункта МДОУ «Детский сад № 32», расположенного по адресу Иркутская обл. г. Усолье-Сибирское, ул. Толбухина,48. | B179: Всего: | C179: =C180+C181 -> 0.00 | D179: =D180+D181 -> 0.00
B180: Местный бюджет | C180: 0.00 | D180: 0.00
B181: Областной бюджет | C181: 0.00 | D181: 0.00
B182: Целевой показатель 2. Удельный вес числа дошкольных образовательных учреждений, в которых проведен капитальный ремонт в общем числе дошкольных образовательных учреждений, здания которых требуют капитального ремонта (%) | C182: 55 | D182: 0
A183: Основное мероприятие 1.34. Капитальный ремонт овощехранилища МДОУ «Детский сад № 32», расположенного по адресу Иркутская обл. г. Усолье-Сибирское, ул. Толбухина,48. | B183: Всего: | C183: =C184+C185 -> 0.00 | D183: =D184+D185 -> 0.00
B184: Местный бюджет | C184: 0.00 | D184: 0.00
B185: Областной бюджет | C185: 0.00 | D185: 0.00
B186: Целевой показатель 2. Удельный вес числа дошкольных образовательных учреждений, в которых проведен капитальный ремонт в общем числе дошкольных образовательных учреждений, здания которых требуют капитального ремонта (%) | C186: 55 | D186: 0
A187: Основное мероприятие 1.35. Капитальный ремонт здания МДОУ «Детский сад № 42», по адресу Иркутская обл. г. Усолье-Сибирское, ул.Толбухина,13 (системы ХВС, ГВС, ВК и системы электроснабжения). | B187: Всего: | C187: =C188+C189 -> 1,247.98 | D187: =D188+D189 -> 0.00
B188: Местный бюджет | C188: =1247977.98/1000 -> 1,247.98 | D188: 0.00
B189: Областной бюджет | C189: 0.00 | D189: 0.00
B190: Целевой показатель 2. Удельный вес числа дошкольных образовательных учреждений, в которых проведен капитальный ремонт в общем числе дошкольных образовательных учреждений, здания которых требуют капитального ремонта (%) | C190: 55 | D190: 0
A191: Основное мероприятие 1.36. Капитальный ремонт туалетов 1,2 этажей МДОУ «Детский сад № 6», расположенного по адресу Иркутская обл. г. Усолье-Сибирское, пр.Космонавтов,6. | B191: Всего: | C191: =C192+C193 -> 0.00 | D191: =D192+D193 -> 0.00
B192: Местный бюджет | C192: 0.00 | D192: 0.00
B193: Областной бюджет | C193: 0.00 | D193: 0.00
B194: Целевой показатель 2. Удельный вес числа дошкольных образовательных учреждений, в которых проведен капитальный ремонт в общем числе дошкольных образовательных учреждений, здания которых требуют капитального ремонта (%) | C194: 55 | D194: 0
A195: Основное мероприятие 1.37. Замена ограждения по периметру МДОУ «Детский сад № 6», расположенного по адресу Иркутская обл. г. Усолье-Сибирское, пр. Космонавтов,6. | B195: Всего: | C195: =C196+C197 -> 0.00 | D195: =D196+D197 -> 0.00
B196: Местный бюджет | C196: 0.00 | D196: 0.00
B197: Областной бюджет | C197: 0.00 | D197: 0.00
B198: Целевой показатель 2. Удельный вес числа дошкольных образовательных учреждений, в которых проведен капитальный ремонт в общем числе дошкольных образовательных учреждений, здания которых требуют капитального ремонта (%) | C198: 55 | D198: 0
A199: Основное мероприятие 1.38. Капитальный ремонт системы отопления, водоотведения, горячего и холодного водоснабжения МДОУ «Детский сад № 1», расположенного по адресу Иркутская обл. г. Усолье-Сибирское, пр. Космонавтов 1А. | B199: Всего: | C199: =C200+C201 -> 0.00 | D199: =D200+D201 -> 0.00
B200: Местный бюджет | C200: 0.00 | D200: 0.00
B201: Областной бюджет | C201: 0.00 | D201: 0.00
B202: Целевой показатель 2. Удельный вес числа дошкольных образовательных учреждений, в которых проведен капитальный ремонт в общем числе дошкольных образовательных учреждений, здания которых требуют капитального ремонта (%) | C202: 55 | D202: 0
A203: Основное мероприятие 1.39. Проведение антитеррористических мероприятий в дошкольных образовательных учреждениях | B203: Всего: | C203: =C204+C205 -> 0.00 | D203: =D204+D205 -> 0.00
B204: Местный бюджет | C204: 0.00 | D204: 0.00
B205: Областной бюджет | C205: 0.00 | D205: 0.00
B206: Целевой показатель 2. Удельный вес числа дошкольных образовательных учреждений, в которых проведен капитальный ремонт в общем числе дошкольных образовательных учреждений, здания которых требуют капитального ремонта (%) | C206: 55 | D206: 0
A207: Основное мероприятие 1.40. Строительство "Детский сад на 140 мест в г. Усолье-Сибирское, ул. Суворова, 11А" | B207: Всего: | C207: =C208+C209 -> 0.00 | D207: =D208+D209 -> 0.00
B208: Местный бюджет | C208: 0.00 | D208: 0.00
B209: Областной бюджет | C209: 0.00 | D209: 0.00
B210: Целевой показатель 2. Удельный вес числа дошкольных образовательных учреждений, в которых проведен капитальный ремонт в общем числе дошкольных образовательных учреждений, здания которых требуют капитального ремонта (%) | C210: 55 | D210: 0
A211: Основное мероприятие 1.41. Современная спортивно-игровая площадка для дошколят (МБДОУ «Детский сад № 42») в рамках реализации на территории инициативных проектов, выдвигаемых для получения финансовой поддержки из бюджета Иркутской области | B211: Всего: | C211: =C212+C213+C214 -> 0.00 | D211: =D212+D213+D214 -> 0.00
B212: Целевые средства | C212: 0.00 | D212: 0.00
B213: Местный бюджет | C213: 0.00 | D213: 0.00
B214: Областной бюджет | C214: 0.00 | D214: 0.00
B215: Целевой показатель 3. Количество дошкольных организаций, реализующих инициативные проекты на территории города Усолье-Сибирское (ед.) | C215: - | D215: 5
A217: Основное мероприятие 1.42. Умный пешеход (МБДОУ «Детский сад № 33») в рамках реализации инициативных проектов, выдвигаемых для получения финансовой поддержки из бюджета Иркутской области | B217: Всего: | C217: =C218+C219+C220 -> 0.00 | D217: =D218+D219+D220 -> 0.00
B218: Целевые средства | C218: 0.00 | D218: 0.00
B219: Местный бюджет | C219: 0.00 | D219: 0.00
B220: Областной бюджет | C220: 0.00 | D220: 0.00
B221: Целевой показатель 3. Количество дошкольных организаций, реализующих инициативные проекты на территории города Усолье-Сибирское (ед.) | C221: - | D221: 5
A222: Основное мероприятие 1.43. Детский сад - территория творчества и развития (МБДОУ «Детский сад № 35») в рамках реализации инициативных проектов, выдвигаемых для получения финансовой поддержки из бюджета Иркутской области | B222: Всего: | C222: =C223+C224+C225 -> 0.00 | D222: =D223+D224+D225 -> 0.00
B223: Целевые средства | C223: 0.00 | D223: 0.00
B224: Местный бюджет | C224: 0.00 | D224: 0.00
B225: Областной бюджет | C225: 0.00 | D225: 0.00
B226: Целевой показатель 3. Количество дошкольных организаций, реализующих инициативные проекты на территории города Усолье-Сибирское (ед.) | C226: - | D226: 5
A227: Основное мероприятие 1.44. Текущий ремонт музыкального зала МБДОУ «Детский сад №3» с оснащением в соответствии со стандартами ФОП (МБДОУ «Детский сад № 3») в рамках реализации инициативных проектов, выдвигаемых для получения финансовой поддержки из бюджета Иркутской области | B227: Всего: | C227: =C228+C229+C230 -> 0.00 | D227: =D228+D229+D230 -> 0.00
B228: Целевые средства | C228: 0.00 | D228: 0.00
B229: Местный бюджет | C229: 0.00 | D229: 0.00
... 458 more rows
